bitfinex/quotes_SOLUSD_20250130
["timestamp","ask_amount","ask_price","bid_price","bid_amount"]
[1738251126563,13.39046589,242.95,242.93,1.0]
[1738251126773,31.77580492,242.94,242.9,1.0]
[1738251127456,31.77580492,242.94,242.88,1.0]
[1738251127759,31.77580492,242.94,242.9,1.0]
[1738251127957,51.77580492,242.96,242.94,1.0]
[1738251128462,31.77580492,242.98,242.94,1.0]
[1738251128654,31.77580492,242.96,242.92,1.0]
[1738251128864,20.0,242.9,242.89,1.0]
[1738251129053,31.77580492,242.9,242.87,1.0]
[1738251129249,13.41184853,242.85,242.83,1.0]
[1738251129440,45.18765345,242.85,242.8,1.0]
[1738251129640,45.18765345,242.83,242.82,1.0]
[1738251129836,45.18765345,242.83,242.8,1.0]
[1738251130068,45.18765345,242.83,242.78,1.063]
[1738251130069,13.41184853,242.82,242.78,1.063]
[1738251130265,20.0,242.86,242.79,1.0]
[1738251130465,31.77580492,242.82,242.81,1.0]
[1738251130665,20.0,242.82,242.81,1.0]
[1738251131045,38.17490492,242.88,242.84,1.0]
[1738251131346,13.41184853,242.87,242.82,1.0]
[1738251131556,20.0,242.8,242.78,1.063]
[1738251131865,13.41184853,242.79,242.78,0.063]
[1738251133157,31.77580492,242.84,242.78,4.1819]
[1738251133390,31.77580492,242.86,242.83,1.0]
[1738251133546,38.17490492,242.88,242.83,1.0]
[1738251133747,13.41184853,242.83,242.81,1.0]
[1738251134161,13.41184853,242.82,242.79,1.0]
[1738251134849,65.18765345,242.8,242.78,0.063]
[1738251135459,45.18765345,242.79,242.78,0.063]
[1738251136390,13.41184853,242.79,242.78,1.063]
[1738251136558,13.41184853,242.79,242.78,32.83880492]
[1738251136760,13.41184853,242.79,242.78,0.063]
[1738251137181,45.18765345,242.79,242.78,0.063]
[1738251138173,13.41184853,242.79,242.78,0.063]
[1738251138478,13.41184853,242.79,242.78,1.063]
[1738251138688,13.41184853,242.79,242.78,0.063]
[1738251139066,45.18765345,242.79,242.78,0.063]
[1738251139385,20.0,242.75,242.67,1.0]
[1738251139556,20.0,242.75,242.62,31.77580492]
[1738251139557,13.41184853,242.68,242.65,1.0]
[1738251140181,31.77580492,242.71,242.67,1.0]
[1738251140480,3.42,242.79,242.72,1.0]
[1738251140681,13.41184853,242.74,242.72,1.0]
[1738251141078,31.77580492,242.82,242.72,36.89560492]
[1738251141386,33.41184853,242.78,242.73,31.77580492]
[1738251141883,33.41184853,242.78,242.72,5.1198]
[1738251141884,13.41184853,242.76,242.72,1.0]
[1738251142571,31.77580492,242.8,242.73,1.0]
[1738251142776,31.77580492,242.82,242.78,1.0]
[1738251142971,20.0,242.79,242.78,1.0]
[1738251143175,33.41184853,242.79,242.78,1.0]
[1738251143697,13.41184853,242.78,242.72,1.0]
[1738251143878,20.0,242.78,242.77,1.0]
[1738251144397,13.41184853,242.77,242.72,5.1199]
[1738251144696,13.41184853,242.75,242.72,1.0]
[1738251145492,20.0,242.76,242.74,1.0]
[1738251145688,31.77580492,242.79,242.76,1.0]
[1738251145868,31.77580492,242.82,242.76,1.0]
[1738251146075,13.41184853,242.78,242.76,1.0]
[1738251146778,31.77580492,242.87,242.83,1.0]
[1738251146982,6.3991,242.88,242.83,1.0]
[1738251147178,31.77580492,242.89,242.83,5.118]
[1738251147393,13.41184853,242.86,242.79,1.0]
[1738251147584,13.41184853,242.86,242.7,1.0]
[1738251147585,13.41184853,242.77,242.73,1.0]
[1738251147780,13.41184853,242.73,242.71,1.0]
[1738251148194,27.86988552,242.94,242.64,31.77580492]
[1738251148195,31.77580492,242.81,242.79,1.0]
[1738251148391,31.77580492,242.84,242.79,1.0]
[1738251148579,13.41184853,242.83,242.79,1.0]
[1738251149999,13.41184853,242.83,242.79,5.1187]
[1738251150196,31.77580492,242.86,242.82,1.0]
[1738251150380,31.77580492,242.88,242.84,1.0]
[1738251150580,33.41184853,242.85,242.84,1.0]
[1738251150995,13.41184853,242.85,242.84,5.1179]
[1738251151177,13.41184853,242.85,242.84,36.89370492]
[1738251151381,13.41184853,242.85,242.84,5.1179]
[1738251152405,13.41184853,242.85,242.84,36.89370492]
[1738251152977,31.80580492,242.92,242.88,1.0]
[1738251153208,31.77580492,242.9,242.84,4.1179]
[1738251153379,31.77580492,242.87,242.83,1.0]
[1738251153578,51.77580492,242.91,242.87,1.0]
[1738251153876,13.41184853,242.88,242.87,1.0]
[1738251154207,13.41184853,242.88,242.81,1.0]
[1738251154413,13.41184853,242.84,242.83,1.0]
[1738251154614,13.41184853,242.86,242.83,1.0]
[1738251154983,51.77580492,242.91,242.87,1.0]
[1738251155176,20.0,242.87,242.83,1.0]
[1738251155883,13.41184853,242.81,242.79,1.0]
[1738251156404,45.18765345,242.8,242.79,1.0]
[1738251157608,45.18765345,242.8,242.64,39.10130492]
[1738251157609,13.41184853,242.79,242.75,1.0]
[1738251157907,13.41184853,242.76,242.75,1.0]
[1738251158386,13.41184853,242.78,242.77,1.0]
[1738251158798,13.41184853,242.78,242.75,1.0]
[1738251159682,31.77580492,242.81,242.77,1.0]
[1738251159908,31.77580492,242.81,242.77,1.063]
[1738251160181,0.03,242.85,242.82,1.0]
[1738251162083,0.03,242.85,242.84,1.0]
[1738251162698,13.44184853,242.85,242.84,1.0]
[1738251162897,45.21765345,242.85,242.79,1.0]
[1738251163198,45.21765345,242.85,242.77,0.063]
[1738251163199,20.0,242.78,242.77,0.063]
[1738251163405,13.41184853,242.78,242.77,1.063]
[1738251163798,13.41184853,242.78,242.77,0.063]
[1738251164518,13.41184853,242.78,242.7,1.0]
[1738251164711,13.41184853,242.72,242.7,0.5]
[1738251164884,13.41184853,242.7,242.65,0.5]
[1738251165084,13.41184853,242.68,242.65,0.5]
[1738251165285,13.41184853,242.66,242.61,6.8392276]
[1738251165516,45.18765345,242.62,242.61,6.3392276]
[1738251165938,20.0,242.6,242.59,6.33922761]
[1738251166137,51.77580492,242.6,242.59,6.33922761]
[1738251166735,31.77580492,242.62,242.59,6.33922761]
[1738251166938,31.77580492,242.6,242.59,6.33922761]
[1738251167097,45.18765345,242.6,242.59,6.33922761]
[1738251167815,20.0,242.57,242.56,0.5]
[1738251168202,13.41184853,242.56,242.54,0.5]
[1738251168402,13.41184853,242.56,242.52,0.563]
[1738251168638,13.41184853,242.56,242.54,0.5]
[1738251168797,31.77580492,242.62,242.57,0.5]
[1738251169002,31.77580492,242.64,242.6,0.5]
[1738251169200,31.77580492,242.66,242.62,0.5]
[1738251169418,13.41184853,242.62,242.6,0.5]
[1738251169654,13.41184853,242.62,242.58,0.5]
[1738251169655,45.18765345,242.62,242.58,0.5]
[1738251169937,13.41184853,242.59,242.53,0.563]
[1738251170134,20.0,242.59,242.58,0.5]
[1738251170601,13.41184853,242.58,242.53,0.063]
[1738251170802,45.18765345,242.54,242.53,0.063]
[1738251172209,13.41184853,242.54,242.53,0.563]
[1738251172623,11.25858223,242.54,242.53,0.563]
[1738251172931,43.03438715,242.54,242.53,0.063]
[1738251173237,11.25858223,242.54,242.53,0.563]
[1738251173534,11.25858223,242.54,242.53,0.063]
[1738251173710,43.03438715,242.54,242.53,0.063]
[1738251174216,43.03438715,242.54,242.53,0.563]
[1738251174217,11.25858223,242.54,242.53,0.563]
[1738251174417,11.25858223,242.54,242.53,0.063]
[1738251174727,20.0,242.5,242.49,25.35691043]
[1738251174934,31.77580492,242.51,242.49,25.85691043]
[1738251175133,31.77580492,242.51,242.49,25.35691043]
[1738251175635,45.18765345,242.5,242.49,25.35691043]
[1738251175996,13.41184853,242.5,242.49,25.85691043]
[1738251176634,33.41184853,242.5,242.49,25.85691043]
[1738251177162,33.41184853,242.5,242.49,25.35691043]
[1738251177350,20.0,242.5,242.49,0.5]
[1738251177630,33.41184853,242.5,242.49,0.5]
[1738251177835,33.41184853,242.5,242.46,0.5]
[1738251178033,13.41184853,242.49,242.48,0.5]
[1738251178527,13.41184853,242.49,242.46,0.5]
[1738251178702,13.41184853,242.49,242.48,0.5]
[1738251179025,45.18765345,242.49,242.44,0.5]
[1738251179234,13.41184853,242.46,242.44,0.5]
[1738251179426,31.77580492,242.45,242.44,0.5]
[1738251179732,13.41184853,242.44,242.43,50.71382086]
[1738251180231,65.18765345,242.44,242.43,50.71382086]
[1738251181412,65.18765345,242.44,242.43,30.87255252]
[1738251181938,69.31235345,242.44,242.43,30.87255252]
[1738251182743,69.31235345,242.44,242.4,139.38419298]
[1738251182744,13.41184853,242.41,242.4,63.39227608]
[1738251183920,31.77580492,242.5,242.45,0.5]
[1738251184231,4.1232,242.53,242.41,0.5]
[1738251184232,45.18765345,242.46,242.41,0.5]
[1738251184426,31.77580492,242.44,242.41,0.5]
[1738251184946,31.77580492,242.51,242.45,0.5]
[1738251185155,35.89900492,242.53,242.47,0.5]
[1738251185309,31.77580492,242.51,242.47,0.5]
[1738251185509,31.77580492,242.49,242.43,0.5]
[1738251185814,13.41184853,242.45,242.43,0.5]
[1738251186224,31.77580492,242.48,242.43,0.5]
[1738251186543,13.41184853,242.45,242.42,0.5]
[1738251186714,13.41184853,242.43,242.42,0.5]
[1738251187132,13.41184853,242.43,242.4,63.89227608]
[1738251187334,13.41184853,242.41,242.4,63.89227608]
[1738251187845,13.41184853,242.42,242.4,63.89227608]
[1738251188310,4.1247,242.45,242.43,0.5]
[1738251188520,35.89930492,242.51,242.48,0.5]
[1738251188949,13.41184853,242.48,242.41,0.5]
[1738251189131,31.77580492,242.42,242.4,63.39227608]
[1738251189831,13.41184853,242.41,242.4,63.39227608]
[1738251190141,17.53704853,242.41,242.4,63.39227608]
[1738251191423,13.41184853,242.41,242.4,63.39227608]
[1738251191630,31.77580492,242.44,242.4,63.39227608]
[1738251191829,13.41184853,242.43,242.42,0.5]
[1738251192827,13.41184853,242.43,242.4,63.39227608]
[1738251193029,45.18765345,242.41,242.4,63.39227608]
[1738251193647,49.31285345,242.41,242.4,63.39227608]
[1738251194445,112.08865837,242.41,242.4,7.608e-05]
[1738251194624,20.0,242.34,242.29,0.5]
[1738251194824,65.18765345,242.34,242.29,0.5]
[1738251195047,65.18765345,242.34,242.28,101.32255587]
[1738251195628,69.31405345,242.34,242.33,85.40290202]
[1738251195830,69.31405345,242.34,242.33,51.62660202]
[1738251196351,69.31405345,242.34,242.33,49.07877971]
[1738251196551,69.31405345,242.34,242.33,43.37877971]
[1738251196867,65.18765345,242.34,242.33,43.37877971]
[1738251197939,65.18765345,242.34,242.33,0.063]
[1738251199560,45.18765345,242.34,242.33,0.563]
[1738251199767,13.41184853,242.34,242.33,0.563]
[1738251199940,45.18765345,242.34,242.33,0.063]
[1738251200443,13.41184853,242.34,242.33,0.563]
[1738251200967,33.29,242.44,242.33,0.563]
[1738251200968,31.77580492,242.42,242.41,0.5]
[1738251201134,31.80580492,242.44,242.41,0.5]
[1738251201540,31.77580492,242.42,242.39,0.5]
[1738251201742,31.77580492,242.4,242.39,0.5]
[1738251202041,20.0,242.36,242.33,0.563]
[1738251202247,31.77580492,242.34,242.33,0.063]
[1738251202753,31.77580492,242.34,242.33,0.563]
[1738251203131,13.41184853,242.35,242.33,0.563]
[1738251204637,31.77580492,242.38,242.33,0.563]
[1738251204957,13.41184853,242.37,242.33,0.563]
[1738251205139,31.77580492,242.4,242.36,0.5]
[1738251205462,31.77580492,242.4,242.38,0.5]
[1738251205830,13.41184853,242.39,242.38,0.5]
[1738251206035,4.1257,242.38,242.35,0.5]
[1738251206351,13.41184853,242.37,242.35,0.5]
[1738251206542,0.03,242.44,242.43,0.5]
[1738251207067,13.41184853,242.4,242.36,0.5]
[1738251207253,31.77580492,242.39,242.36,0.5]
[1738251207582,31.80580492,242.44,242.42,0.5]
[1738251208174,13.41184853,242.43,242.42,0.5]
[1738251208869,13.44184853,242.44,242.42,0.5]
[1738251209066,17.56664853,242.44,242.42,0.5]
[1738251209366,0.03,242.44,242.42,32.27580492]
[1738251209559,0.03,242.44,242.41,31.3559413]
[1738251209767,13.44184853,242.44,242.39,31.77580492]
[1738251210067,13.44184853,242.44,242.41,31.77580492]
[1738251210364,0.03,242.44,242.43,31.77580492]
[1738251212241,6.47295709,242.48,242.43,31.90129492]
[1738251212438,6.47295709,242.48,242.47,31.77580492]
[1738251212638,6.47295709,242.48,242.47,32.39432421]
[1738251212947,25.89182836,242.52,242.48,4.124]
[1738251213151,25.89182836,242.52,242.51,31.77580492]
[1738251213672,25.89182836,242.52,242.49,31.77580492]
[1738251213867,25.89182836,242.52,242.47,31.77580492]
[1738251214069,25.89182836,242.52,242.51,31.77580492]
[1738251214542,13.41184853,242.51,242.46,31.77580492]
[1738251214870,13.41184853,242.52,242.46,31.77580492]
[1738251215047,45.18765345,242.52,242.44,31.77580492]
[1738251215676,13.41184853,242.49,242.42,31.77580492]
[1738251216368,31.77580492,242.54,242.46,31.77580492]
[1738251216862,31.77580492,242.56,242.48,31.77580492]
[1738251217040,35.89850492,242.56,242.48,31.77580492]
[1738251217241,13.41184853,242.55,242.48,31.77580492]
[1738251217573,17.53444853,242.57,242.5,31.77580492]
[1738251217871,31.77580492,242.58,242.5,31.77580492]
[1738251218164,0.03,242.6,242.54,31.77580492]
[1738251218358,0.03,242.6,242.56,31.77580492]
[1738251218564,0.03,242.6,242.58,31.77580492]
[1738251218970,0.0001,242.6,242.59,5.74039944]
[1738251219170,0.0001,242.6,242.59,38.64169436]
[1738251219370,0.0001,242.62,242.61,22.12549]
[1738251219575,0.0001,242.62,242.61,85.67709984]
[1738251219766,0.0001,242.62,242.61,86.29517641]
[1738251220079,0.0001,242.62,242.61,85.67709984]
[1738251220383,0.0001,242.62,242.61,53.39388205]
[1738251220576,0.0001,242.62,242.61,86.16968697]
[1738251220782,0.0001,242.62,242.61,89.09587774]
[1738251220987,31.77580492,242.79,242.63,1.0]
[1738251221179,31.77580492,242.79,242.68,31.77580492]
[1738251221180,13.41184853,242.78,242.68,31.77580492]
[1738251221486,31.77580492,242.77,242.68,31.77580492]
[1738251221676,13.41184853,242.74,242.66,31.77580492]
[1738251221873,31.77580492,242.77,242.68,31.77580492]
[1738251222383,13.41184853,242.76,242.68,31.77580492]
[1738251222688,31.77580492,242.73,242.64,31.77580492]
[1738251223384,31.77580492,242.71,242.64,31.77580492]
[1738251223582,13.41184853,242.66,242.61,25.40952425]
[1738251224581,13.41184853,242.68,242.61,25.40952425]
[1738251225175,13.41184853,242.66,242.61,28.21077843]
[1738251225573,13.41184853,242.62,242.61,28.21077843]
[1738251225970,31.77580492,242.65,242.61,25.40952425]
[1738251226176,4.1206,242.68,242.61,25.40952425]
[1738251226177,31.80580492,242.69,242.61,25.40952425]
[1738251226496,0.03,242.69,242.66,31.77580492]
[1738251227288,0.03,242.69,242.66,35.89670492]
[1738251227494,0.03,242.69,242.68,31.77580492]
[1738251229378,0.03,242.69,242.68,35.89640492]
[1738251231602,0.03,242.69,242.68,36.51435851]
[1738251232227,31.77580492,242.81,242.69,1.0]
[1738251232377,0.03,242.85,242.79,31.77580492]
[1738251233904,0.03,242.85,242.79,35.89450492]
[1738251234092,31.77580492,242.81,242.73,36.51330893]
[1738251234404,31.77580492,242.81,242.73,4.1197]
[1738251234710,31.77580492,242.81,242.72,0.61793438]
[1738251235008,31.77580492,242.81,242.73,31.77580492]
[1738251235795,31.77580492,242.79,242.71,31.77580492]
[1738251235984,13.41184853,242.71,242.67,0.61801126]
[1738251236304,13.41184853,242.66,242.63,25.40952425]
[1738251236609,31.77580492,242.69,242.63,25.40952425]
[1738251236786,13.41184853,242.7,242.63,57.18532917]
[1738251237285,31.77580492,242.71,242.63,57.18532917]
[1738251237484,6.2305,242.73,242.67,31.77580492]
[1738251237705,13.41184853,242.72,242.65,31.77580492]
[1738251238013,13.41184853,242.72,242.63,31.77580492]
[1738251238014,31.77580492,242.71,242.63,31.77580492]
[1738251238198,13.41184853,242.7,242.63,31.77580492]
[1738251238388,13.41184853,242.72,242.61,35.96040492]
[1738251238389,31.77580492,242.69,242.61,35.96040492]
[1738251238586,31.77580492,242.73,242.65,31.77580492]
[1738251238788,31.77580492,242.77,242.69,31.77580492]
[1738251239091,31.77580492,242.77,242.62,1.0]
[1738251239092,13.41184853,242.73,242.65,31.77580492]
[1738251239419,31.77580492,242.7,242.61,35.96040492]
[1738251239722,31.77580492,242.66,242.61,0.063]
[1738251240086,31.77580492,242.68,242.61,0.063]
[1738251240286,31.77580492,242.71,242.63,31.77580492]
[1738251240703,13.41184853,242.7,242.63,31.77580492]
[1738251240895,13.41184853,242.68,242.61,4.1847]
[1738251241109,31.77580492,242.67,242.61,4.1847]
[1738251241307,31.77580492,242.71,242.64,31.77580492]
[1738251241508,31.77580492,242.75,242.68,31.77580492]
[1738251241718,31.77580492,242.77,242.68,31.77580492]
[1738251241921,13.41184853,242.76,242.68,31.77580492]
[1738251242502,31.77580492,242.83,242.75,31.77580492]
[1738251242722,31.80580492,242.87,242.77,31.77580492]
[1738251242930,31.80580492,242.87,242.79,31.77580492]
[1738251243301,31.80580492,242.87,242.79,35.89440492]
[1738251243495,45.21765345,242.87,242.79,35.89440492]
[1738251243699,45.21765345,242.87,242.84,31.77580492]
[1738251243700,0.03,242.85,242.84,31.77580492]
[1738251244137,0.03,242.87,242.84,31.77580492]
[1738251244338,0.03,242.87,242.86,31.77580492]
[1738251246217,0.03,242.87,242.8,31.77580492]
[1738251246419,31.77580492,242.86,242.78,31.77580492]
[1738251246617,31.77580492,242.86,242.79,0.61773767]
[1738251247131,13.44184853,242.87,242.8,31.77580492]
[1738251247546,31.77580492,242.84,242.79,0.61773767]
[1738251247711,31.77580492,242.84,242.76,31.77580492]
[1738251247908,31.77580492,242.84,242.76,35.89500492]
[1738251248130,31.77580492,242.86,242.78,31.77580492]
[1738251248734,31.77580492,242.86,242.76,4.1192]
[1738251248735,0.03,242.87,242.8,31.77580492]
[1738251249029,0.03,242.87,242.84,31.77580492]
[1738251249224,0.03,242.87,242.86,31.77580492]
[1738251250341,0.03,242.87,242.84,31.77580492]
[1738251250539,0.03,242.87,242.84,32.39339982]
[1738251250911,0.03,242.87,242.86,31.77580492]
[1738251252312,0.03,242.87,242.86,32.39334922]
[1738251253941,0.03,242.87,242.84,31.77580492]
[1738251254309,0.03,242.87,242.86,31.77580492]
[1738251254541,0.03,242.87,242.86,19.53891913]
[1738251255341,0.03,242.87,242.86,23.65641913]
[1738251255519,0.03,242.87,242.86,24.78190913]
[1738251255938,0.03,242.92,242.91,19.53891913]
[1738251256112,0.03,242.92,242.91,20.15621102]
[1738251256945,0.03,242.92,242.91,21.15621102]
[1738251257113,0.03,242.92,242.91,21.28170102]
[1738251257439,0.03,242.92,242.91,25.39840102]
[1738251257633,0.03,242.95,242.94,20.12549]
[1738251257834,0.03,243.04,242.98,1.0]
[1738251258012,0.03,243.04,243.03,19.53891913]
[1738251258411,0.03,243.04,242.99,20.15601085]
[1738251258719,19.56891913,243.04,242.97,19.53891913]
[1738251259021,0.03,243.04,242.98,0.61721691]
[1738251259213,19.53891913,243.02,242.95,20.15616949]
[1738251259413,19.53891913,243.02,242.95,24.27206949]
[1738251260039,0.03,243.04,242.97,19.53891913]
[1738251260040,19.56891913,243.04,242.97,19.53891913]
[1738251260210,23.68351913,243.04,242.96,0.6172016]
[1738251260411,19.53891913,243.02,242.95,19.53891913]
[1738251260717,13.41184853,243.01,242.94,0.61731247]
[1738251260933,19.53891913,242.98,242.91,19.53891913]
[1738251261130,19.53891913,242.96,242.89,20.15623105]
[1738251261330,13.41184853,242.93,242.85,20.15633977]
[1738251261549,17.52824853,242.93,242.85,20.15633977]
[1738251261852,19.53891913,242.92,242.85,20.15633977]
[1738251263242,19.53891913,242.86,242.79,0.61756422]
[1738251263440,19.53891913,242.84,242.78,0.61774076]
[1738251263655,19.53891913,242.86,242.79,19.53891913]
[1738251263956,13.41184853,242.89,242.75,19.53891913]
[1738251263957,13.41184853,242.83,242.75,19.53891913]
[1738251264260,19.53891913,242.91,242.81,19.53891913]
[1738251264458,19.53891913,242.91,242.83,19.53891913]
[1738251264632,13.41184853,242.9,242.83,19.53891913]
[1738251264830,13.41184853,242.86,242.78,19.53891913]
[1738251265136,19.53891913,242.85,242.78,19.53891913]
[1738251265347,19.53891913,242.85,242.78,20.15665654]
[1738251265549,19.53891913,242.87,242.78,24.27555654]
[1738251265757,13.41184853,242.86,242.78,20.15665654]
[1738251265961,19.53891913,242.83,242.76,19.53891913]
[1738251266262,32.95076766,242.85,242.8,38.05889295]
[1738251266421,4.1169,242.9,242.8,38.05889295]
[1738251266422,19.53891913,242.83,242.8,38.05889295]
[1738251266624,32.95076766,242.81,242.8,38.05889295]
[1738251268351,32.95076766,242.81,242.74,4.1195]
[1738251268548,25.57091913,242.83,242.75,19.53891913]
[1738251268742,6.032,242.83,242.79,31.77976491]
[1738251268939,0.03,242.84,242.79,31.77976491]
[1738251270238,13.41184853,242.8,242.73,31.77976491]
[1738251270933,13.41184853,242.8,242.73,35.89946491]
[1738251271134,31.77976491,242.83,242.75,31.77976491]
[1738251271736,13.41184853,242.82,242.75,31.77976491]
[1738251273060,13.41184853,242.82,242.75,35.89916491]
[1738251273855,31.77976491,242.83,242.75,35.89916491]
[1738251274064,0.03,242.84,242.77,31.77976491]
[1738251274262,0.03,242.84,242.83,31.77976491]
[1738251274468,0.03,242.84,242.83,35.89786491]
[1738251274854,12.54053108,242.96,242.83,35.89786491]
[1738251274855,12.54053108,242.96,242.92,31.77976491]
[1738251275168,6.45153108,242.96,242.94,31.77976491]
[1738251275772,6.45153108,242.96,242.9,31.77976491]
[1738251276269,31.77976491,242.93,242.86,31.77976491]
[1738251276469,31.77976491,242.89,242.82,31.77976491]
[1738251276770,31.77976491,242.89,242.72,1.0]
[1738251276771,13.41184853,242.84,242.76,31.77976491]
[1738251278167,13.41184853,242.84,242.76,35.89896491]
[1738251278538,13.41184853,242.84,242.78,31.77976491]
[1738251278739,13.41184853,242.84,242.76,31.77976491]
[1738251278942,13.41184853,242.84,242.74,31.77976491]
[1738251278943,31.77976491,242.83,242.74,31.77976491]
[1738251279254,13.41184853,242.8,242.74,31.77976491]
[1738251280275,13.41184853,242.8,242.78,0.063]
[1738251280653,35.89796491,242.83,242.78,0.063]
[1738251280980,33.29136491,242.87,242.78,35.96166491]
[1738251281175,13.41184853,242.86,242.8,31.77976491]
[1738251281483,13.41184853,242.84,242.78,0.063]
[1738251281841,13.41184853,242.84,242.78,31.84276491]
[1738251282465,13.41184853,242.82,242.78,0.063]
[1738251282673,13.41184853,242.83,242.78,0.063]
[1738251283360,6.45153108,242.82,242.78,0.063]
[1738251283550,6.45153108,242.82,242.76,35.87862182]
[1738251283752,6.45153108,242.82,242.76,31.75942182]
[1738251283952,6.45153108,242.82,242.78,31.77976491]
[1738251284886,6.45153108,242.82,242.76,35.89896491]
[1738251285070,6.45153108,242.82,242.76,31.77976491]
[1738251285370,10.56973108,242.82,242.74,35.89916491]
[1738251285774,13.41184853,242.8,242.72,31.77976491]
[1738251285979,13.41184853,242.78,242.7,31.77976491]
[1738251286382,13.41184853,242.78,242.72,31.77976491]
[1738251287689,13.41184853,242.78,242.7,31.77976491]
[1738251287690,13.41184853,242.76,242.7,31.77976491]
[1738251287974,13.41184853,242.76,242.68,31.77976491]
[1738251288656,13.41184853,242.76,242.7,31.77976491]
[1738251288973,6.45153108,242.77,242.74,31.77976491]
[1738251289548,6.45153108,242.75,242.72,31.77976491]
[1738251290684,13.41184853,242.74,242.7,32.39771871]
[1738251290860,45.19161344,242.79,242.7,32.39771871]
[1738251290861,6.45153108,242.78,242.7,19.57175126]
[1738251291179,6.45153108,242.78,242.74,19.57175126]
[1738251291682,6.45153108,242.76,242.74,19.57175126]
[1738251293551,6.45153108,242.76,242.72,19.57175126]
[1738251293976,6.45153108,242.76,242.73,19.57175126]
[1738251294277,13.41184853,242.78,242.73,19.57175126]
[1738251294979,19.57175126,242.75,242.69,4.1203]
[1738251295159,19.57175126,242.75,242.68,4.1206]
[1738251295573,13.41184853,242.75,242.68,23.69235126]
[1738251296075,13.41184853,242.76,242.69,19.57175126]
[1738251296254,13.41184853,242.76,242.7,19.57175126]
[1738251296448,19.86337961,242.76,242.72,19.57175126]
[1738251296653,6.45153108,242.76,242.72,19.57175126]
[1738251296877,6.45153108,242.76,242.7,19.57175126]
[1738251297249,13.41184853,242.75,242.69,19.57175126]
[1738251298079,19.86337961,242.75,242.69,19.57175126]
[1738251298686,6.45153108,242.75,242.69,0.61804137]
[1738251298891,6.45153108,242.75,242.74,19.57175126]
[1738251299054,6.45153108,242.75,242.72,19.57175126]
[1738251299468,13.41184853,242.77,242.72,19.57175126]
[1738251299977,13.41184853,242.76,242.7,19.57175126]
[1738251300478,23.98217961,242.79,242.72,19.57175126]
[1738251300669,6.45153108,242.79,242.74,19.57175126]
[1738251300863,6.45153108,242.79,242.76,19.57175126]
[1738251301176,6.45153108,242.79,242.78,19.57175126]
[1738251301377,12.90306217,242.8,242.78,19.57175126]
[1738251302272,12.90306217,242.8,242.79,4.73647965]
[1738251302678,38.70826244,242.85,242.79,4.73647965]
[1738251302883,38.70826244,242.85,242.84,19.57175126]
[1738251303686,6.44814406,242.88,242.84,19.57175126]
[1738251303872,6.44814406,242.88,242.87,19.57175126]
[1738251305284,6.44814406,242.88,242.87,20.1893007]
[1738251305663,6.44814406,242.88,242.87,19.57175126]
[1738251306172,13.41184853,242.94,242.87,19.57175126]
[1738251306578,20.0,242.94,242.88,19.57175126]
[1738251306767,20.0,242.94,242.78,1.063]
[1738251306768,0.03,242.95,242.9,19.57175126]
[1738251306959,0.03,242.95,242.93,19.57175126]
[1738251307165,0.03,242.95,242.94,19.57175126]
[1738251307580,0.03,242.95,242.91,19.57175126]
[1738251307773,0.03,242.95,242.9,19.57175126]
[1738251308204,0.03,242.95,242.92,19.57175126]
[1738251308490,0.03,242.95,242.94,19.57175126]
[1738251308693,0.03,242.95,242.94,23.68795126]
[1738251309399,0.03,243.03,242.97,20.0]
[1738251309702,0.03,243.03,243.02,19.57175126]
[1738251309992,0.03,243.03,243.02,20.18881788]
[1738251310399,0.03,243.03,243.02,19.57175126]
[1738251311070,0.03,243.03,243.02,23.68655126]
[1738251311266,0.03,243.04,243.02,25.3035825]
[1738251311472,0.03,243.1,243.05,20.0]
[1738251311773,0.03,243.1,243.09,19.57175126]
[1738251312172,0.03,243.1,243.09,39.14350252]
[1738251312498,0.03,243.12,243.11,20.0]
[1738251312795,0.03,243.12,243.11,59.76026782]
[1738251312960,0.03,243.12,243.11,44.30181656]
[1738251313164,0.03,243.12,243.11,24.30181656]
[1738251313663,0.03,243.12,243.11,44.30181656]
[1738251314173,0.03,243.12,243.11,45.30181656]
[1738251314676,6.44814406,243.16,243.14,20.0]